[Event "45th FIDE Womens Olympiad 2024"]
[Site "Budapest"]
[Date "2024.09.16"]
[Round "6.220"]
[White "Mitsuyama, Rikka"]
[Black "Darweeche, Roaa"]
[Result "1-0"]
[ECO "D13"]
[WhiteElo "1738"]
[BlackElo "1557"]
[PlyCount "117"]
[EventDate "2024.09.05"]
[EventType "team-tourn"]
[EventCountry "HUN"]
[WhiteTeam "Japan"]
[BlackTeam "Lebanon"]
[WhiteTeamCountry "JPN"]
[BlackTeamCountry "LBN"]
[TimeControl "40/5400+30:1800+30"]

1. d4 d5 2. c4 c6 3. Nc3 Bf5 4. Qb3 Qd7 5. cxd5 Nf6 6. Nf3 cxd5 7. Ne5 Qc8 8. Nxd5 Nxd5 9. Qxd5 e6 10. Qb5+ Nc6 11. Nxc6 Qxc6 12. Qxc6+ bxc6 13. Bd2 c5 14. dxc5 Bxc5 15. Rc1 Bd6 16. f3 e5 17. e4 Be6 18. Rc6 Ke7 19. Ra6 Bc5 20. Bc3 f6 21. Bd3 Rhd8 22. Ke2 Bb6 23. Bb4+ Kf7 24. Ba5 Bc8 25. Bxb6 Bxa6 26. Bxd8 Bxd3+ 27. Kxd3 Rxd8+ 28. Kc2 Rc8+ 29. Kd2 Rd8+ 30. Ke3 Ke6 31. Rc1 Rd7 32. Rc6+ Ke7 33. Ra6 h5 34. g3 g5 35. h3 Kf7 36. f4 gxf4+ 37. gxf4 exf4+ 38. Kxf4 Re7 39. Kf5 Re5+ 40. Kf4 Re7 41. b4 Rb7 42. a3 Re7 43. a4 Kg7 44. b5 Kg6 45. Rc6 Kg7 46. h4 Kg6 47. Rd6 Rc7 48. Rc6 Rd7 49. Ra6 Re7 50. Rd6 Rc7 51. Rd3 Rc4 52. a5 Ra4 53. a6 Rb4 54. Rd5 Rb3 55. Rd7 Rxb5 56. Rxa7 Ra5 57. Ra8 Kf7 58. a7 Ra3 59. Rh8 1-0

[Event "45th FIDE Womens Olympiad 2024"]
[Site "Budapest"]
[Date "2024.09.16"]
[Round "6.221"]
[White "Rivera Negron, Yanira"]
[Black "Lieketseng, Ngatane"]
[Result "1/2-1/2"]
[ECO "D35"]
[WhiteElo "1805"]
[BlackElo "1651"]
[PlyCount "84"]
[EventDate "2024.09.05"]
[EventType "team-tourn"]
[EventCountry "HUN"]
[WhiteTeam "Puerto Rico"]
[BlackTeam "Lesotho"]
[WhiteTeamCountry "PUR"]
[BlackTeamCountry "LES"]
[TimeControl "40/5400+30:1800+30"]

1. d4 d5 2. c4 e6 3. cxd5 exd5 4. Nc3 Nf6 5. Bg5 Be7 6. e3 c6 7. Bd3 Be6 8. Qb3 Qb6 9. Qc2 Nbd7 10. Nge2 Rc8 11. O-O O-O 12. Na4 Qc7 13. Bf4 Bd6 14. f3 Rfe8 15. Bxd6 Qxd6 16. e4 dxe4 17. fxe4 Ng4 18. e5 Qe7 19. Rf3 Nf8 20. Nf4 g6 21. Rg3 Qd7 22. Nxe6 Nxe6 23. Rxg4 Nxd4 24. Qd1 Rxe5 25. Re4 Rg5 26. Bf1 Rd5 27. Nc3 Rd6 28. Qe1 Nc2 29. Re7 Qd8 30. Qe5 Nxa1 31. Ne4 Re6 32. Rxe6 fxe6 33. Qxe6+ Kf8 34. Nd6 Rc7 35. Bc4 Rg7 36. h3 Nc2 37. Qe5 b5 38. Qf4+ Ke7 39. Qe5+ Kf8 40. Qf4+ Ke7 41. Qe5+ Kf8 42. Qf4+ Ke7 1/2-1/2

[Event "45th FIDE Womens Olympiad 2024"]
[Site "Budapest"]
[Date "2024.09.16"]
[Round "6.222"]
[White "Boitumelo, Sethabathaba"]
[Black "Vega Jimenez, Keyshla M."]
[Result "0-1"]
[ECO "D36"]
[WhiteElo "1571"]
[BlackElo "1769"]
[PlyCount "116"]
[EventDate "2024.09.05"]
[EventType "team-tourn"]
[EventCountry "HUN"]
[WhiteTeam "Lesotho"]
[BlackTeam "Puerto Rico"]
[WhiteTeamCountry "LES"]
[BlackTeamCountry "PUR"]
[TimeControl "40/5400+30:1800+30"]

1. d4 d5 2. c4 e6 3. Nc3 Nf6 4. cxd5 exd5 5. Bg5 c6 6. Qc2 h6 7. Bh4 Be7 8. e3 O-O 9. Bd3 Re8 10. Nf3 Ne4 11. Bxe7 Qxe7 12. O-O Nd7 13. Nd2 Ndf6 14. Ncxe4 Nxe4 15. Bxe4 dxe4 16. Rfc1 Bd7 17. Qc5 Qf6 18. Nf1 Be6 19. Ng3 Bd5 20. a4 b6 21. Qc3 a5 22. Ne2 g5 23. Qc2 Qe6 24. Qc3 h5 25. b4 Qg4 26. Ng3 h4 27. h3 Qe6 28. Ne2 Qe7 29. Rcb1 Reb8 30. Qa3 Bc4 31. Nc3 Bd3 32. Rb2 Rb7 33. b5 Qxa3 34. Rxa3 cxb5 35. Nxb5 Rd8 36. Rc3 Rd5 37. Rc6 Bxb5 38. Rxb5 Rxb5 39. axb5 Kf8 40. f3 exf3 41. gxf3 Ke7 42. Kf2 a4 43. Ke2 a3 44. Rc2 Ra7 45. Ra2 f5 46. Kd3 g4 47. fxg4 fxg4 48. hxg4 h3 49. Kc3 Kf6 50. Kb3 Kg5 51. d5 Kxg4 52. d6 Kg3 53. e4 h2 54. Rxh2 Kxh2 55. Ka2 Rd7 56. e5 Kg3 57. Kxa3 Kf4 58. e6 Rxd6 {0-} 0-1

[Event "45th FIDE Womens Olympiad 2024"]
[Site "Budapest"]
[Date "2024.09.16"]
[Round "6.223"]
[White "Alvarado Perez, Coralys M."]
[Black "Ntsielo, Bonolo"]
[Result "0-1"]
[ECO "C00"]
[WhiteElo "1694"]
[BlackElo "1757"]
[PlyCount "90"]
[EventDate "2024.09.05"]
[EventType "team-tourn"]
[EventCountry "HUN"]
[WhiteTeam "Puerto Rico"]
[BlackTeam "Lesotho"]
[WhiteTeamCountry "PUR"]
[BlackTeamCountry "LES"]
[TimeControl "40/5400+30:1800+30"]

1. e4 e6 2. d3 d5 3. Nd2 Nf6 4. g3 b6 5. Bg2 Bb7 6. e5 Nfd7 7. d4 c5 8. c3 Nc6 9. Ne2 cxd4 10. cxd4 Rc8 11. O-O Ba6 12. Nf3 Be7 13. a3 Na5 14. Re1 O-O 15. Nc3 Nc4 16. Bf1 Nb8 17. Ne2 Qd7 18. Nf4 Rc7 19. b3 Na5 20. Bd2 Bxf1 21. Rxf1 Qb5 22. Bxa5 Qxa5 23. b4 Qa6 24. Rc1 Rfc8 25. Rxc7 Rxc7 26. Qb3 Qc4 27. Rb1 g5 28. Nh5 g4 29. Qe3 Qc2 30. Nd2 Rc3 31. Qf4 Qg6 32. Nf6+ Bxf6 33. exf6 Nd7 34. Qd6 Nxf6 35. Qb8+ Kg7 36. Qxa7 Qc2 37. Qxb6 Qxd2 38. a4 Qa2 39. Rf1 Qxa4 40. Qb8 Rb3 41. Qf4 h6 42. h3 Rxb4 43. hxg4 Rxd4 44. Qe5 Rxg4 45. Ra1 Qd4 {0-} 0-1

[Event "45th FIDE Womens Olympiad 2024"]
[Site "Budapest"]
[Date "2024.09.16"]
[Round "6.225"]
[White "Gertrude, Banini"]
[Black "Sawan, Eman"]
[Result "0-1"]
[ECO "A48"]
[WhiteElo "1712"]
[BlackElo "1972"]
[PlyCount "94"]
[EventDate "2024.09.05"]
[EventType "team-tourn"]
[EventCountry "HUN"]
[WhiteTeam "Ghana"]
[BlackTeam "Palestine"]
[WhiteTeamCountry "GHA"]
[BlackTeamCountry "PLE"]
[TimeControl "40/5400+30:1800+30"]

1. d4 Nf6 2. Nf3 g6 3. Bf4 Bg7 4. e3 O-O 5. Be2 d6 6. Nbd2 Nbd7 7. h3 b6 8. O-O Bb7 9. c3 Re8 10. Qc2 e5 11. dxe5 dxe5 12. Bg5 h6 13. Bh4 Qe7 14. Rfd1 a6 15. Bg3 Nh5 16. Bh2 f5 17. e4 f4 18. Ne1 Nhf6 19. f3 g5 20. Nd3 h5 21. Nf2 Rad8 22. a3 Kh8 23. b4 Bh6 24. Nb3 Rg8 25. Kf1 Nf8 26. Rxd8 Qxd8 27. c4 Bc8 28. c5 g4 29. fxg4 hxg4 30. hxg4 Nxg4 31. Nxg4 Bxg4 32. Bxa6 Qh4 33. Bg1 f3 34. gxf3 Bh3+ 35. Ke2 Rg2+ 36. Kd3 Qd8+ 37. Kc3 Rxc2+ 38. Kxc2 Be6 39. cxb6 cxb6 40. Kb2 Bxb3 41. Kxb3 Ne6 42. Bc4 Nd4+ 43. Bxd4 Qxd4 44. Rf1 Bd2 45. Ba6 Qc3+ 46. Ka4 Qc6+ 47. Kb3 b5 {0-} 0-1

[Event "45th FIDE Womens Olympiad 2024"]
[Site "Budapest"]
[Date "2024.09.16"]
[Round "6.226"]
[White "Hamouri, Taqwa"]
[Black "Benson, Maud"]
[Result "1-0"]
[ECO "B07"]
[WhiteElo "1845"]
[BlackElo "1682"]
[PlyCount "99"]
[EventDate "2024.09.05"]
[EventType "team-tourn"]
[EventCountry "HUN"]
[WhiteTeam "Palestine"]
[BlackTeam "Ghana"]
[WhiteTeamCountry "PLE"]
[BlackTeamCountry "GHA"]
[TimeControl "40/5400+30:1800+30"]

1. e4 d6 2. d4 Nf6 3. Nc3 c6 4. Bg5 Nbd7 5. f4 Qa5 6. Qd2 e5 7. Nf3 Be7 8. Bd3 exd4 9. Nxd4 Nc5 10. Be2 Qb4 11. Rb1 O-O 12. O-O Re8 13. e5 dxe5 14. fxe5 Nce4 15. Nxe4 Nxe4 16. Qxb4 Bxb4 17. Bf4 g5 18. Bf3 Bd2 19. Bxe4 Bxf4 20. Rfe1 Rxe5 21. g3 f5 22. gxf4 Rxe4 23. Rxe4 fxe4 24. fxg5 c5 25. Ne2 Be6 26. b3 Rf8 27. Rd1 Bg4 28. Re1 Rf3 29. Ng3 e3 30. Ne4 Bf5 31. Ng3 Bxc2 32. Nf1 e2 33. Rxe2 Bd3 34. Rf2 Rxf2 35. Kxf2 Bb1 36. a3 Bc2 37. Nd2 Kg7 38. Kf3 Kg6 39. Kg4 b5 40. h4 Bd1+ 41. Kf4 a5 42. Ne4 b4 43. axb4 cxb4 44. Nd2 a4 45. bxa4 Bxa4 46. Nc4 Kh5 47. Kg3 b3 48. Nb2 Bc6 49. Nd3 Bd7 50. Nf4# 1-0

[Event "45th FIDE Womens Olympiad 2024"]
[Site "Budapest"]
[Date "2024.09.16"]
[Round "6.227"]
[White "Felix, Tobi"]
[Black "Faqeeh, Yara"]
[Result "0-1"]
[ECO "E61"]
[WhiteElo "1677"]
[BlackElo "1671"]
[PlyCount "84"]
[EventDate "2024.09.05"]
[EventType "team-tourn"]
[EventCountry "HUN"]
[WhiteTeam "Ghana"]
[BlackTeam "Palestine"]
[WhiteTeamCountry "GHA"]
[BlackTeamCountry "PLE"]
[TimeControl "40/5400+30:1800+30"]

1. d4 Nf6 2. Nf3 g6 3. Bg5 Bg7 4. e3 d6 5. Be2 Nbd7 6. c4 O-O 7. Nc3 a6 8. O-O h6 9. Bh4 g5 10. Bg3 Nh5 11. Qc2 Nxg3 12. hxg3 e5 13. dxe5 dxe5 14. Rfd1 f5 15. Rd2 c6 16. Rad1 Qe7 17. b3 e4 18. Nh2 Nc5 19. b4 Ne6 20. c5 Nc7 21. Na4 Be6 22. Bc4 Rad8 23. Nb6 Rxd2 24. Rxd2 Rd8 25. Nf1 Bd5 26. Qb3 Qe6 27. a3 Bf6 28. Kh2 Kg7 29. a4 Bxc4 30. Nxc4 Nd5 31. Nd6 Rd7 32. b5 axb5 33. axb5 Be5 34. bxc6 bxc6 35. Nc4 Bf6 36. Nd6 Be7 37. Qb2+ Kg6 38. Ne8 Bxc5 39. Qh8 Qf7 40. Ra2 Rd8 41. Qc3 Nxc3 42. Ra6 Qxe8 {0-} 0-1

[Event "45th FIDE Womens Olympiad 2024"]
[Site "Budapest"]
[Date "2024.09.16"]
[Round "6.228"]
[White "Natsheh, Wajd"]
[Black "Dotse, Dzidzor Esi"]
[Result "1-0"]
[ECO "B10"]
[WhiteElo "1739"]
[BlackElo "1530"]
[PlyCount "71"]
[EventDate "2024.09.05"]
[EventType "team-tourn"]
[EventCountry "HUN"]
[WhiteTeam "Palestine"]
[BlackTeam "Ghana"]
[WhiteTeamCountry "PLE"]
[BlackTeamCountry "GHA"]
[TimeControl "40/5400+30:1800+30"]

1. e4 c6 2. c4 d5 3. cxd5 cxd5 4. exd5 Qxd5 5. Nc3 Qd8 6. d4 Nf6 7. Nf3 Bg4 8. Qb3 Bxf3 9. gxf3 Nc6 10. Qxb7 Nxd4 11. Bb5+ Nxb5 12. Qc6+ Nd7 13. Nxb5 Rc8 14. Qd5 e6 15. Qd3 a6 16. Nc3 Nc5 17. Qe2 Be7 18. O-O O-O 19. Kh1 Qd3 20. Qd1 Rfd8 21. Be3 Qxd1 22. Raxd1 Nd3 23. Rb1 Nxb2 24. Rxb2 Rxc3 25. Rb7 Bf6 26. Bb6 Rdc8 27. a4 Rxf3 28. Kg2 Rb3 29. a5 Bd4 30. Rc1 Re8 31. Rcc7 Bxb6 32. Rxb6 Rxb6 33. axb6 g6 34. b7 Kg7 35. Rc8 a5 36. Rxe8 1-0

[Event "45th FIDE Womens Olympiad 2024"]
[Site "Budapest"]
[Date "2024.09.16"]
[Round "6.229"]
[White "Georgina, Sackie"]
[Black "Park, Sunwoo"]
[Result "0-1"]
[ECO "A60"]
[WhiteElo "1688"]
[BlackElo "1877"]
[PlyCount "90"]
[EventDate "2024.09.05"]
[EventType "team-tourn"]
[EventCountry "HUN"]
[WhiteTeam "Liberia"]
[BlackTeam "South Korea"]
[WhiteTeamCountry "LBR"]
[TimeControl "40/5400+30:1800+30"]

1. d4 Nf6 2. c4 e6 3. Nf3 c5 4. d5 exd5 5. cxd5 d6 6. Nc3 Be7 7. e4 O-O 8. h3 Re8 9. Bd3 a6 10. a4 Nbd7 11. Bf4 Nf8 12. O-O Ng6 13. Bh2 b6 14. Rb1 Nd7 15. Bc2 Qc7 16. Nd2 Bf6 17. f4 Rb8 18. Nf3 b5 19. axb5 axb5 20. e5 dxe5 21. Bxg6 hxg6 22. Ne4 Qb6 23. Nxf6+ gxf6 24. fxe5 Nxe5 25. Nxe5 fxe5 26. Qf3 c4+ 27. Kh1 Rb7 28. Rbe1 Qd6 29. Rd1 Bf5 30. Qg3 Bd3 31. Rf3 Be2 32. Rff1 Bxd1 33. Rxd1 b4 34. Qg5 c3 35. bxc3 bxc3 36. h4 c2 37. Rc1 Qxd5 38. Bg1 Rb1 39. Be3 Rxc1+ 40. Bxc1 Qd1+ 41. Kh2 Qh5 42. Qf6 Qf5 43. Qb6 e4 44. Bg5 e3 45. Bxe3 Qe5+ {0-} 0-1

[Event "45th FIDE Womens Olympiad 2024"]
[Site "Budapest"]
[Date "2024.09.16"]
[Round "6.230"]
[White "Khan, Anastasia"]
[Black "Meleh, N. Davis"]
[Result "1-0"]
[ECO "D02"]
[WhiteElo "1859"]
[BlackElo "1602"]
[PlyCount "69"]
[EventDate "2024.09.05"]
[EventType "team-tourn"]
[EventCountry "HUN"]
[WhiteTeam "South Korea"]
[BlackTeam "Liberia"]
[BlackTeamCountry "LBR"]
[TimeControl "40/5400+30:1800+30"]

1. d4 d5 2. Bf4 Nf6 3. e3 Bg4 4. Nf3 e6 5. Nbd2 c5 6. h3 Bh5 7. Bb5+ Nc6 8. c3 Qb6 9. Qa4 a6 10. Bxc6+ Qxc6 11. Qxc6+ bxc6 12. Ne5 cxd4 13. cxd4 Bb4 14. f3 Bxd2+ 15. Kxd2 O-O 16. Nxc6 Kh8 17. Ne5 Rfc8 18. Rhc1 Ne8 19. Nd7 Rxc1 20. Rxc1 h6 21. b4 g5 22. Be5+ Kg8 23. Rc6 Bg6 24. a4 Bb1 25. Nc5 Ba2 26. Rxa6 Rxa6 27. Nxa6 Bc4 28. Nc5 Kf8 29. b5 f6 30. b6 fxe5 31. b7 exd4 32. b8=Q dxe3+ 33. Kxe3 Ke7 34. a5 Nd6 35. Qc7+ 1-0

[Event "45th FIDE Womens Olympiad 2024"]
[Site "Budapest"]
[Date "2024.09.16"]
[Round "6.231"]
[White "Abigail, Karyah"]
[Black "Cho, Yeonhee"]
[Result "1-0"]
[ECO "D18"]
[WhiteElo "1790"]
[BlackElo "1696"]
[PlyCount "93"]
[EventDate "2024.09.05"]
[EventType "team-tourn"]
[EventCountry "HUN"]
[WhiteTeam "Liberia"]
[BlackTeam "South Korea"]
[WhiteTeamCountry "LBR"]
[TimeControl "40/5400+30:1800+30"]

1. d4 d5 2. c4 c6 3. Nc3 Nf6 4. Nf3 dxc4 5. a4 Bf5 6. e3 e6 7. Bxc4 Bb4 8. O-O a5 9. Qe2 Nbd7 10. Rd1 Bg6 11. Bd3 O-O 12. e4 Re8 13. Bg5 e5 14. d5 Bxc3 15. dxc6 bxc6 16. bxc3 h6 17. Bc1 Nc5 18. Bc2 Qc7 19. Nd2 Rad8 20. f3 Ne6 21. Ba3 Nf4 22. Qf2 Nd7 23. Nc4 Kh8 24. Rd2 Ra8 25. Rad1 Nf6 26. Bd6 Qa7 27. Qxa7 Rxa7 28. Nxe5 Ne6 29. Nxg6+ fxg6 30. Bb3 Rb7 31. Bc4 Nd7 32. Kf2 Nb6 33. Bxe6 Rxe6 34. Rb2 Rd7 35. Rxb6 Rexd6 36. Rxd6 Rxd6 37. Ke2 g5 38. Ra6 Kg8 39. Rxa5 Kf7 40. Rc5 Ke7 41. a5 Kd7 42. a6 Kc7 43. a7 Rd8 44. Ra5 Ra8 45. Kd3 Kb7 46. e5 Kc7 47. g3 1-0

[Event "45th FIDE Womens Olympiad 2024"]
[Site "Budapest"]
[Date "2024.09.16"]
[Round "6.232"]
[White "Kim, Sarang"]
[Black "Princess, K. Banney"]
[Result "1-0"]
[ECO "B13"]
[WhiteElo "1732"]
[BlackElo "1447"]
[PlyCount "73"]
[EventDate "2024.09.05"]
[EventType "team-tourn"]
[EventCountry "HUN"]
[WhiteTeam "South Korea"]
[BlackTeam "Liberia"]
[BlackTeamCountry "LBR"]
[TimeControl "40/5400+30:1800+30"]

1. e4 c6 2. d4 d5 3. exd5 cxd5 4. Bd3 Nc6 5. c3 Nf6 6. Nf3 Bg4 7. Bf4 e6 8. Nbd2 Bd6 9. Bxd6 Qxd6 10. O-O Rb8 11. Qa4 a6 12. Ne5 O-O 13. Rfe1 Bh5 14. Nb3 Nd7 15. Nxd7 Qxd7 16. Nc5 Qd6 17. b4 e5 18. Bf5 Rfd8 19. dxe5 Nxe5 20. f4 Nc4 21. Nxb7 Qb6+ 22. Nc5 Qf6 23. Nd7 Qd6 24. Nxb8 Qxb8 25. Qxa6 Qxf4 26. Bd3 Ne5 27. Qb6 Rf8 28. Qe3 Nxd3 29. Qxd3 Qd6 30. a4 f6 31. a5 Be8 32. Kh1 Bc6 33. b5 Ba8 34. Qd4 Qb8 35. b6 Bb7 36. a6 Bxa6 37. Rxa6 1-0

[Event "45th FIDE Womens Olympiad 2024"]
[Site "Budapest"]
[Date "2024.09.16"]
[Round "6.234"]
[White "Zenobia, Wasif"]
[Black "Cruz, Bitia"]
[Result "1-0"]
[ECO "B20"]
[WhiteElo "1743"]
[BlackElo "1736"]
[PlyCount "71"]
[EventDate "2024.09.05"]
[EventType "team-tourn"]
[EventCountry "HUN"]
[WhiteTeam "Pakistan"]
[BlackTeam "Honduras"]
[WhiteTeamCountry "PAK"]
[BlackTeamCountry "HON"]
[TimeControl "40/5400+30:1800+30"]

1. e4 c5 2. c4 d6 3. d3 Nc6 4. h3 h6 5. Nf3 Nf6 6. Nc3 e5 7. Be2 Be7 8. O-O Be6 9. Nd5 Nd7 10. Nxe7 Qxe7 11. Nh2 O-O 12. f4 f5 13. Qe1 Nd4 14. Bd1 fxe4 15. Qxe4 Nf6 16. Qe1 e4 17. Be3 Nc6 18. Bc2 Nb4 19. Qd2 Bf5 20. dxe4 Nxc2 21. Qxc2 Nxe4 22. Rfe1 Qf7 23. g4 Bh7 24. f5 Nf6 25. Rad1 Ne8 26. b3 Qf6 27. Nf3 h5 28. Bg5 Qf7 29. Re7 Qxe7 30. Bxe7 Rf7 31. Re1 hxg4 32. hxg4 Nf6 33. Ng5 Nxg4 34. Nxf7 Kxf7 35. Qe4 Ne5 36. Bxd6 1-0

[Event "45th FIDE Womens Olympiad 2024"]
[Site "Budapest"]
[Date "2024.09.16"]
[Round "6.235"]
[White "Oseguera, Suhey"]
[Black "Mehak, Gul"]
[Result "0-1"]
[ECO "B17"]
[WhiteElo "1590"]
[BlackElo "1710"]
[PlyCount "124"]
[EventDate "2024.09.05"]
[EventType "team-tourn"]
[EventCountry "HUN"]
[WhiteTeam "Honduras"]
[BlackTeam "Pakistan"]
[WhiteTeamCountry "HON"]
[BlackTeamCountry "PAK"]
[TimeControl "40/5400+30:1800+30"]

1. e4 c6 2. d4 d5 3. Nc3 dxe4 4. Nxe4 Nd7 5. Nf3 Ngf6 6. Bd3 Nxe4 7. Bxe4 Nf6 8. Qd3 Nxe4 9. Qxe4 Qd5 10. Qf4 Bf5 11. c4 Qe4+ 12. Be3 Qxf4 13. Bxf4 e6 14. a4 Bb4+ 15. Ke2 Bg4 16. h3 Bxf3+ 17. Kxf3 Rd8 18. Rhd1 O-O 19. g4 h6 20. h4 Rd7 21. Rd3 f6 22. Kg2 e5 23. Be3 Rfd8 24. Rad1 e4 25. Rb3 a5 26. f3 exf3+ 27. Kxf3 Kf7 28. Rbd3 Ke6 29. Ke4 Re8 30. d5+ Kf7+ 31. Kf3 cxd5 32. cxd5 Rc8 33. Bd2 Bxd2 34. R1xd2 Rc5 35. Ke4 b5 36. Rc3 Rdc7 37. d6 Re5+ 38. Kf3 Rd7 39. Rc7 Ke6 40. Rxd7 Kxd7 41. axb5 Rxb5 42. Ke4 Re5+ 43. Kf3 h5 44. Rd4 Rb5 45. Rd2 Rb3+ 46. Kf4 Rb4+ 47. Kf5 Rxg4 48. Rd5 a4 49. Rd2 Rxh4 50. Kg6 Rg4+ 51. Kxh5 Rg5+ 52. Kh4 g6 53. Rf2 Rf5 54. Rg2 Rh5+ 55. Kg3 Rg5+ 56. Kf3 Rxg2 57. Kxg2 Kxd6 58. Kf3 Ke5 59. Kg4 Ke4 60. Kh4 Ke3 61. Kg4 f5+ 62. Kg3 f4+ {0-} 0-1

[Event "45th FIDE Womens Olympiad 2024"]
[Site "Budapest"]
[Date "2024.09.16"]
[Round "6.236"]
[White "Aayat, Asmi"]
[Black "Maradiaga, Cesia"]
[Result "0-1"]
[ECO "C65"]
[WhiteElo "1423"]
[BlackElo "1675"]
[PlyCount "120"]
[EventDate "2024.09.05"]
[EventType "team-tourn"]
[EventCountry "HUN"]
[WhiteTeam "Pakistan"]
[BlackTeam "Honduras"]
[WhiteTeamCountry "PAK"]
[BlackTeamCountry "HON"]
[TimeControl "40/5400+30:1800+30"]

1. e4 e5 2. Nf3 Nc6 3. Bb5 Nf6 4. d3 Ne7 5. Nxe5 c6 6. Ba4 Qa5+ 7. Nc3 Qxe5 8. O-O Ng6 9. Be3 Be7 10. f4 Qc7 11. f5 Ne5 12. d4 Nc4 13. Bf4 d6 14. Bb3 b5 15. Qc1 O-O 16. Bxc4 bxc4 17. Qe3 Qb7 18. b3 cxb3 19. axb3 Re8 20. Qg3 Nh5 21. Qf3 Nxf4 22. Qxf4 Bf8 23. Rf3 Qb4 24. Ra4 Qb7 25. Rg3 Qd7 26. Rg4 d5 27. e5 Qxf5 28. Qxf5 Bxf5 29. Rg3 Bxc2 30. Ra6 Bxb3 31. Rxc6 Rec8 32. Rxc8 Rxc8 33. Nb5 Bc4 34. Nxa7 Rc7 35. Rc3 Rxa7 36. Kf2 Ra1 37. h3 Bb4 38. Re3 h5 39. Kg3 Be1+ 40. Kf3 Bd2 41. Re2 Bxe2+ 42. Kxe2 Bb4 43. Kf3 g5 44. g4 h4 45. Ke3 Rd1 46. Kf3 Rxd4 47. Ke3 Re4+ 48. Kd3 Rxe5 49. Kd4 f6 50. Kd3 Kf7 51. Kd4 Ke6 52. Kd3 Re4 53. Kc2 Re3 54. Kd1 Rxh3 55. Ke2 d4 56. Kf2 d3 57. Kg2 d2 58. Kxh3 d1=Q 59. Kg2 Qe2+ 60. Kh1 Qf1+ {0-} 0-1

[Event "45th FIDE Womens Olympiad 2024"]
[Site "Budapest"]
[Date "2024.09.16"]
[Round "6.237"]
[White "Sagastegui, Thamara"]
[Black "Ravelomanana, Sabine"]
[Result "1/2-1/2"]
[ECO "C45"]
[WhiteElo "1544"]
[BlackElo "1926"]
[PlyCount "209"]
[EventDate "2024.09.05"]
[EventType "team-tourn"]
[EventCountry "HUN"]
[WhiteTeam "Aruba"]
[BlackTeam "Madagascar"]
[WhiteTeamCountry "ARN"]
[BlackTeamCountry "MAD"]
[TimeControl "40/5400+30:1800+30"]

1. e4 e5 2. Nf3 Nc6 3. d4 exd4 4. Nxd4 Bb4+ 5. Nc3 Qe7 6. Ndb5 d6 7. Be2 Nf6 8. O-O a6 9. Nd5 Nxd5 10. exd5 Ne5 11. Nd4 O-O 12. c3 Bc5 13. Be3 f5 14. Nc2 Bxe3 15. fxe3 Bd7 16. b3 Rf6 17. g3 Raf8 18. Qd2 Nf7 19. Bf3 Ng5 20. Bg2 Qe8 21. Nd4 b6 22. c4 Rh6 23. Qe2 Rff6 24. Rae1 Nf7 25. Nf3 g5 26. Nd4 Ne5 27. Nf3 Nf7 28. Nd4 g4 29. e4 Ne5 30. exf5 Qh5 31. Bh1 Bxf5 32. Nxf5 Rxf5 33. Rxf5 Qxf5 34. Rf1 Qh5 35. Rf2 Qg5 36. Qf1 Qe3 37. Qe2 Qd4 38. Qd2 Qxd2 39. Rxd2 Kg7 40. Be4 Rf6 41. Rf2 h6 42. Rxf6 Kxf6 43. Kg2 Nf7 44. Kf2 Ke5 45. Ke3 a5 46. a4 Ng5 47. Bg2 Nh7 48. Be4 Nf6 49. Bd3 Nd7 50. Be2 Kf5 51. Bd3+ Kg5 52. Bc2 Nc5 53. Bd1 h5 54. Bc2 Nd7 55. Bd1 Ne5 56. Be2 h4 57. Bd1 h3 58. Be2 Nd7 59. Bd3 Nf6 60. Bc2 Nh5 61. Be4 Kf6 62. Bh1 Ke5 63. Be4 Ng7 64. Bd3 Ne8 65. Bc2 Nf6 66. Bd3 Nd7 67. Bb1 Nc5 68. Bc2 Na6 69. Bd1 Kf5 70. Bc2+ Kg5 71. Bd1 Nb4 72. Kd2 c6 73. dxc6 Nxc6 74. Ke3 Nb4 75. Ke4 Na2 76. Ke3 Kf5 77. Bc2+ Ke5 78. Bd1 Kf5 79. Bc2+ Kg5 80. Bb1 Nb4 81. Be4 Na6 82. Kd4 Nc7 83. Ke3 Ne8 84. Kd4 Nf6 85. Bd3 Nd7 86. Ke3 Ne5 87. Be2 Kf5 88. Bd1 Nd7 89. Bc2+ Ke5 90. Bd1 Nf6 91. Bc2 d5 92. cxd5 Nxd5+ 93. Ke2 Kd4 94. Bf5 Nf6 95. Kd2 Ke5 96. Bd3 Nh5 97. Ke3 Ng7 98. Be4 Ne6 99. Bc2 Nd4 100. Bd1 Nf5+ 101. Kf2 Nh6 102. Ke3 Nf5+ 103. Kf2 Nd4 104. Ke3 Nf5+ 105. Kf2 1/2-1/2

[Event "45th FIDE Womens Olympiad 2024"]
[Site "Budapest"]
[Date "2024.09.16"]
[Round "6.238"]
[White "Raharimanana, Faratiana"]
[Black "Jacobs, Annelaine"]
[Result "1-0"]
[ECO "E91"]
[WhiteElo "1815"]
[BlackElo "1763"]
[PlyCount "113"]
[EventDate "2024.09.05"]
[EventType "team-tourn"]
[EventCountry "HUN"]
[WhiteTeam "Madagascar"]
[BlackTeam "Aruba"]
[WhiteTeamCountry "MAD"]
[BlackTeamCountry "ARN"]
[TimeControl "40/5400+30:1800+30"]

1. d4 Nf6 2. Nf3 g6 3. c4 Bg7 4. Nc3 O-O 5. e4 d6 6. Be2 c6 7. h3 e5 8. O-O Qc7 9. Be3 Nbd7 10. Qd2 Re8 11. dxe5 dxe5 12. Rfd1 Bf8 13. Rab1 a5 14. a3 Nc5 15. Qc2 a4 16. Bxc5 Bxc5 17. Nxa4 Nxe4 18. Nxc5 Nxc5 19. Qc3 Bf5 20. Rbc1 Na4 21. Qb3 Qe7 22. Rd2 Nc5 23. Qe3 f6 24. g4 Bd7 25. Rcd1 Rad8 26. b4 Ne6 27. c5 Nf4 28. Bf1 Be6 29. Rxd8 Rxd8 30. Rxd8+ Qxd8 31. Qd2 Qxd2 32. Nxd2 Bd5 33. Kh2 Kf8 34. Kg3 Ke7 35. f3 Kd7 36. Kf2 Kc7 37. Ke3 Kd7 38. h4 Ke7 39. Nb1 h6 40. Nc3 g5 41. hxg5 hxg5 42. a4 Kd7 43. Kf2 Kc8 44. Ke3 Kd7 45. Bd3 Be6 46. Be4 Bd5 47. Bf5+ Be6 48. Be4 Bd5 49. b5 Kc8 50. Bf5+ Kd8 51. b6 Bc4 52. a5 Nd5+ 53. Kd2 Nxc3 54. Kxc3 Bb5 55. Bd3 Ba6 56. Bxa6 bxa6 57. Kd3 1-0

[Event "45th FIDE Womens Olympiad 2024"]
[Site "Budapest"]
[Date "2024.09.16"]
[Round "6.239"]
[White "Moreno Mora, Milaydes Lourdes"]
[Black "Randriatsiferana, Dimbiharentsoa Chris"]
[Result "1/2-1/2"]
[ECO "B70"]
[WhiteElo "1694"]
[BlackElo "1736"]
[PlyCount "126"]
[EventDate "2024.09.05"]
[EventType "team-tourn"]
[EventCountry "HUN"]
[WhiteTeam "Aruba"]
[BlackTeam "Madagascar"]
[WhiteTeamCountry "ARN"]
[BlackTeamCountry "MAD"]
[TimeControl "40/5400+30:1800+30"]

1. e4 c5 2. Nf3 d6 3. Bb5+ Bd7 4. Bxd7+ Qxd7 5. d4 cxd4 6. Nxd4 Nf6 7. Nc3 Nc6 8. h3 g6 9. Be3 Bg7 10. O-O O-O 11. f4 Nxd4 12. Bxd4 Qc6 13. Bxf6 Bxf6 14. Nd5 Kg7 15. Nxf6 exf6 16. Qd3 Rfe8 17. Rfe1 Rac8 18. c3 Qb6+ 19. Kh1 Qxb2 20. Rab1 Qxc3 21. Qxd6 Rcd8 22. Qb4 Qxb4 23. Rxb4 b6 24. Re2 Re7 25. Kg1 Rd3 26. a4 Ra3 27. Kf2 g5 28. fxg5 fxg5 29. e5 h5 30. Rbe4 Re6 31. Rd2 Kg6 32. Rd7 f5 33. Rb4 Rxe5 34. Rxa7 Ra2+ 35. Kf1 f4 36. Rxb6+ Kf5 37. Rf7+ Ke4 38. Rb4+ Ke3 39. Rb3+ Kd2 40. Rd7+ Kc2 41. Rdd3 Rc5 42. g3 Rxa4 43. gxf4 Rxf4+ 44. Kg2 Rcc4 45. Ra3 Rfe4 46. Rf3 Re1 47. Ra2+ Kb1 48. Raf2 Re5 49. Rb3+ Kc1 50. Ra3 Rc2 51. Rxc2+ Kxc2 52. Kg3 Kd2 53. Kg2 h4 54. Kf3 Re1 55. Ra5 Rg1 56. Ra2+ Kd3 57. Ra3+ Kc4 58. Ra4+ Kd3 59. Rg4 Rf1+ 60. Kg2 Rf5 61. Ra4 Rb5 62. Kf3 Rf5+ 63. Kg4 Rb5 1/2-1/2